Cogmind - Beta 16 @@@ ROGUE MODE // 2025.11.07 @ 16:24:02 Player: Velocity Result: Destroyed by as-89426 with Assembled Rifle Performance ------------- Evolutions (0) 0 Regions Visited (2) 400 Robots Destroyed (6) 30 Value Destroyed (118) 118 Prototype IDs (2) 40 Alien Tech Used (0) 0 Bonus (0) 0 TOTAL SCORE: 588 Bonus ------- None Cogmind --------- Core Integrity 0/250 Matter 274/300 Energy 99/100 System Corruption 5% Temperature Cool (0) Movement Core (100) Ox1 Location -10/Mines Parts ------- > --- POWER (1) -------- (None) > --- PROPULSION (2) --- (None) > --- UTILITY (2) ------ Small Storage Unit > --- WEAPON (2) ------- (None) > --- INVENTORY (8) ---- Light Ion Engine Aluminum Leg Flight Unit Flight Unit Light Assault Rifle Grenade Launcher Peak State ------------ > --- POWER ------------ Ion Engine > --- PROPULSION ------- Aluminum Leg Aluminum Leg > --- UTILITY ---------- Heat Sink Small Storage Unit > --- WEAPON ----------- Particle Gun Assault Rifle > --- INVENTORY -------- Light Ion Engine Light Ion Engine Aluminum Leg Wheel Compact Wheel Assault Rifle Light Cannon Grenade Launcher [Rating: 8] Favorites ----------- Power Ion Engine Engine Ion Engine Propulsion Aluminum Leg Leg Aluminum Leg Wheel Compact Wheel Utility Small Storage Unit Device Seismic Detector Storage Small Storage Unit Weapon Assault Rifle Energy Gun Particle Gun Ballistic Gun Assault Rifle Ballistic Cannon Light Cannon Build | -11 -10 -10 ------- Run | Yrd Mat Min Slots Evolved . | . . . Power . | . . . Propulsion . | . . . Utility . | . . . Weapon . | . . . Parts Attached 15 | 7 4 4 Power 3 | 1 1 1 Engine 3 | 1 1 1 Core . | . . . Reactor . | . . . Propulsion 4 | 2 . 2 Treads . | . . . Leg 2 | 2 . . Wheel 2 | . . 2 Hover . | . . . Flight . | . . . Utility 3 | 2 1 . Device 2 | 1 1 . Storage 1 | 1 . . Processor . | . . . Hackware . | . . . Protection . | . . . Artifact . | . . . Weapon 5 | 2 2 1 Energy Gun 1 | . 1 . Energy Cannon . | . . . Ballistic Gun 3 | 2 . 1 Ballistic Cannon 1 | . 1 . Launcher . | . . . Special Weapon . | . . . Impact Weapon . | . . . Slashing Weapon . | . . . Piercing Weapon . | . . . Special Melee Weapon . | . . . Unidentified Prototypes . | . . . Parts Lost 10 | . 3 7 Power 2 | . 1 1 Propulsion 2 | . . 2 Utility 2 | . 1 1 Weapon 4 | . 1 3 Highest Loss Streak 6 | . 2 6 To Critical Strikes . | . . . Average Backups 6 | 1 6 7 Power 1 | . 1 1 Propulsion 2 | 1 2 3 Utility . | . . . Weapon 2 | . 2 2 Tool/Special . | . . . Unused Backups 6 | . . 6 Power 1 | . . 1 Propulsion 3 | . . 3 Utility . | . . . Weapon 2 | . . 2 Tool/Special . | . . . Average Slot Usage (%) 98 | . 99 98 Engine 13 | . 14 13 Leg 21 | . 28 2 Wheel 6 | . . 25 Device 13 | . 13 13 Storage 14 | . 14 14 Energy Gun 4 | . 2 11 Ballistic Gun 22 | . 25 13 Peak Build Rating 8 | 7 8 8 Average Rating 7 | 4 7 7 On Entrance 4 | . 7 7 Avg Prop Armor Cover (%) . | . . . Naked Turns . | . . . Heaviest Build 16 | 15 16 14 Greatest Support 26 | 20 20 26 Greatest Overweight (x) . | . . . Average Overweight (x) . | . . . Largest Inventory Capacity 8 | 8 8 8 Average Capacity 7 | 6 8 8 Most Carried 8 | 4 8 8 Average Carried 6 | 2 6 7 Final Capacity 8 | 8 8 8 Final Carried 7 | 4 7 6 Class Distribution -------------------- 100% | Mutant Dominant Class ---------------- Mutant | -10/Materials Mutant | -10/Mines Resources | -11 -10 -10 ----------- Run | Yrd Mat Min Matter Collected 439 | 249 138 52 Remotely . | . . . Salvage Created 156 | 15 84 57 Parts 16 | 4 7 5 Haulers Intercepted . | . . . Recyclers Shooed . | . . . Parts Field Recycled . | . . . Retrieved Matter . | . . . Parts Self-Destructed . | . . . Prevented . | . . . Parts Restored . | . . . Kills | -11 -10 -10 ------- Run | Yrd Mat Min Combat Hostiles Destroyed 6 | . 2 4 Guns 5 | . 2 3 Cannons 1 | . . 1 Classes Destroyed 4 | 1 1 2 Tunneler 1 | 1 . . Swarmer 3 | . . 3 Grunt 2 | . 2 . Assembled 1 | . . 1 Best Kill Streak 3 | 1 2 3 Combat Bots Only 3 | . 2 3 Max Kills in Single Turn 1 | 1 1 1 Gunslinging . | . . . Exploded . | . . . Melee . | . . . Uniques/NPCs Destroyed . | . . . Combat | -11 -10 -10 -------- Run | Yrd Mat Min Hostile Shots Fired 98 | . 56 42 Missed 21 | . 14 7 Hits 77 | . 42 35 Melee 3 | . . 3 Projectile 74 | . 42 32 AOE 8 | . . 8 Critical Strikes 3 | . 1 2 Damage Taken 1136 | . 458 678 Core 259 | . 104 155 Absorbed by Shields . | . . . Core Remaining (%) 100 | 100 . . Volleys Fired 25 | 1 17 7 Largest 2 | 2 2 2 Hottest 85 | 40 85 85 Shots Fired 50 | 2 34 14 Gun 47 | 2 34 11 Cannon 3 | . . 3 Launcher . | . . . Special . | . . . Kinetic 41 | 2 29 10 Thermal 9 | . 5 4 Explosive . | . . . Electromagnetic . | . . . Robot Hit Streak 10 | 1 10 4 Robot Miss Streak 3 | . 2 3 Penetration Max . | . . . Secondary Targets 1 | . . 1 Max Gunslinging Chain 1 | . . 1 Shots Hit Robots 28 | 1 19 8 Core Hits 12 | 1 6 5 Critical Kills . | . . . Critical Parts Destroyed . | . . . Critical Strikes . | . . . Melee Attacks . | . . . Impact . | . . . Slashing . | . . . Piercing . | . . . Sneak Attacks . | . . . Combat Hostiles . | . . . Follow-up Attacks . | . . . Damage Inflicted 397 | 26 244 127 Guns 330 | 26 241 63 Cannons 54 | . . 54 Explosions . | . . . Melee . | . . . Ramming 13 | . 3 10 Kinetic 325 | 26 195 104 Thermal 59 | . 46 13 Explosive . | . . . Electromagnetic . | . . . Impact . | . . . Slashing . | . . . Piercing . | . . . Highest Corruption . | . . . Average Corruption . | . . . Corruption Purged . | . . . Corruption Blocked . | . . . Overload Shots . | . . . Overflow Damage . | . . . Projectiles . | . . . Explosions . | . . . Melee . | . . . Knockbacks . | . . . Impact . | . . . Kinetic . | . . . Secondary . | . . . Self-Inflicted Damage 4 | . . 4 Shots . | . . . Rammed 2 | . . 2 Targets Rammed 3 | . 1 2 Kicked 1 | . 1 . Crushed . | . . . Highest Temperature 54 | . 54 25 Average Temperature 14 | . 14 25 Received Heat Transfer 262 | . 162 100 Siege Activations . | . . . Martial Activations . | . . . Shielding Activations . | . . . Robots Disrupted . | . . . Combat Hostiles . | . . . Robots Corrupted . | . . . Combat Hostiles . | . . . Parts Fried . | . . . Impact Corruptions . | . . . Robots Melted . | . . . Combat Hostiles . | . . . Parts Melted . | . . . Heat Transferred 148 | . 111 37 Parts Sabotaged . | . . . Parts Stolen . | . . . Parts Stripped . | . . . Power Chain Reactions . | . . . Alert | -11 -10 -10 ------- Run | Yrd Mat Min Maximum Alert Level . | . . . Low Security (%) 100 | 100 100 100 Level 1 . | . . . Level 2 . | . . . Level 3 . | . . . Level 4 . | . . . Level 5 . | . . . High Security . | . . . Max Security . | . . . Peak Influence 87 | 5 45 87 Initial 17 | . . 17 Average 11 | . 4 35 Influence Increases 182 | 5 107 70 Destroy 0b10 Robot/C 100 | . 40 60 Destroy 0b10 Robot/NC 5 | 5 . . Destroy Leader 20 | . 10 10 Successful Hack 12 | . 12 . Lose Combat Pursuer 45 | . 45 . Influence Decreases 182 | 5 62 115 Entered New Map 28 | . . 28 Time Decay 139 | 5 47 87 Lost Part 15 | . 15 . Squads Dispatched 2 | . 2 . Investigation 1 | . 1 . Extermination . | . . . Reinforcement 1 | . 1 . Assault . | . . . Garrison . | . . . Intercept . | . . . Searches Triggered . | . . . Construction Impeded . | . . . Haulers Reinforced . | . . . Active Scanning Responses . | . . . Cargo Convoy Interrupts . | . . . Stealth | -11 -10 -10 --------- Run | Yrd Mat Min Distress Signals . | . . . Communications Jammed . | . . . Distress Signals . | . . . Times Spotted 30 | . 7 23 Peak Tracking Total 13 | . 3 13 Tactical Retreats 3 | . 1 2 Traps | -11 -10 -10 ------- Run | Yrd Mat Min Traps Triggered . | . . . Indirectly . | . . . Trap Hack Attempts . | . . . Triggered . | . . . Disarmed . | . . . Reprogrammed . | . . . Reused . | . . . Traps Extracted . | . . . Installed . | . . . Triggered . | . . . Machines | -11 -10 -10 ---------- Run | Yrd Mat Min Machines Disabled . | . . . Max in Single Turn . | . . . Machines Repaired . | . . . Machines Dismantled . | . . . Machines Sabotaged . | . . . Overloaded Fab Kills . | . . . Hacking | -11 -10 -10 --------- Run | Yrd Mat Min Machines Accessed 2 | . 2 . Terminals 2 | . 2 . Fabricators . | . . . Repair Stations . | . . . Recycling Units . | . . . Scanalyzers . | . . . Garrison Access . | . . . Total Hacks 5 | . 5 . Successful 3 | . 3 . Failed 2 | . 2 . Catastrophic . | . . . Database Lockouts . | . . . Manual . | . . . Terminals 5 | . 5 . Fabricators . | . . . Repair Stations . | . . . Recycling Units . | . . . Scanalyzers . | . . . Garrison Access . | . . . Terminal Hacks 3 | . 3 . Prototype ID Bank 1 | . 1 . Branch Access Points 1 | . 1 . Emergency Access Points 1 | . 1 . Fabricator Hacks . | . . . Repair Station Hacks . | . . . Recycling Unit Hacks . | . . . Scanalyzer . | . . . Garrison Access Hacks . | . . . Unauthorized Hacks . | . . . Terminals . | . . . Fabricators . | . . . Repair Stations . | . . . Recycling Units . | . . . Scanalyzers . | . . . Garrison Access . | . . . Data Cores Recovered . | . . . Used . | . . . Hacking Detections 1 | . 1 . Full Trace Events 1 | . 1 . Feedback Events . | . . . Feedback Blocked . | . . . Robot Schematics Acquired . | . . . Robots Built . | . . . Authchips . | . . . Time . | . . . Total Robot Build Rating . | . . . Part Schematics Acquired . | . . . Parts Built . | . . . Authchips . | . . . Time . | . . . Total Part Build Rating . | . . . Part Studies Acquired . | . . . Parts Repaired . | . . . Time . | . . . Parts Recycled . | . . . Recycled Matter . | . . . Retrieved Matter . | . . . Retrieved Components . | . . . Parts Scanalyzed . | . . . Part Schematics Acquired . | . . . Parts Damaged . | . . . Bothacking | -11 -10 -10 ------------ Run | Yrd Mat Min Used RIF Installer . | . . . Robots Hacked . | . . . Non-combat . | . . . Combat . | . . . Robot Hacks Applied . | . . . Relay Couplers Released . | . . . Fabnet Peak Effective % . | . . . Robots Rewired . | . . . Allies Hacked . | . . . Hacks Repelled . | . . . Allies | -11 -10 -10 -------- Run | Yrd Mat Min Total Allies . | . . . Largest Group . | . . . Highest-Rated Group . | . . . Highest-Rated Ally . | . . . Total Orders . | . . . Ally Attacks . | . . . Total Damage . | . . . Kills . | . . . Allies Corrupted . | . . . Allies Melted . | . . . Intel | -11 -10 -10 ------- Run | Yrd Mat Min Active Infowar (turns) 556 | 4 552 . Seismic 556 | 4 552 . Robot Analysis Total . | . . . Derelict Logs Recovered 1 | . . 1 Drone Launches . | . . . Drone Recoveries . | . . . Exploration | -11 -10 -10 ------------- Run | Yrd Mat Min Turns Passed 961 | 60 678 223 Spaces Moved 497 | 37 257 203 Core 1 | 1 . . Treads . | . . . Legs 295 | 36 257 2 Wheels 201 | . . 201 Hover . | . . . Flight . | . . . Fastest Speed 50 | 50 120 90 Average Speed 107 | 118 120 90 Slowest Speed 120 | 120 120 120 Overloaded Moves . | . . . Propulsion Burnouts . | . . . Robots Hopped . | . . . Potential Cave-ins . | . . . Cave-ins Triggered . | . . . Exploration Rate (%) 30 | 4 37 51 Regions Visited 2 Branch Regions 1 Pre-discovered Areas . | . . . Known Exits Taken 1 | . 1 . Unknown Exits Taken 1 | 1 . . Scrap Searched . | . . . Spaces Dug . | . . . Terrain Destroyed . | . . . Melee . | . . . Projectile . | . . . AOE . | . . . Terrain Rammed . | . . . Walls Destroyed . | . . . Machines Disabled . | . . . Actions | -11 -10 -10 --------- Run | Yrd Mat Min Total 868 | 48 591 229 Wait 309 | . 308 1 Move 495 | 36 256 203 Hop . | . . . Pick Up 10 | 4 2 4 Fast Attach 11 | 7 3 1 Attach 4 | . 1 3 Detach 2 | . 2 . Swap 5 | . 1 4 Drop 4 | . . 4 Fire 25 | 1 17 7 Melee . | . . . Ram 2 | . . 2 Kick 1 | . 1 . Crush . | . . . Escape Stasis . | . . . Rewire . | . . . Trap . | . . . Miscellaneous . | . . . Route ------- -11/Scrapyard -10/Materials (discovered 2 exits: *Min / [*Sub]) -10/Mines History --------- Turn | Location | Event 30 | -11/Scrapyard | Discovered new exit (range 16) 61 | -11/Scrapyard | Entered Materials 122 | -10/Materials | Identified exit to Mines 313 | -10/Materials | Build established: Mutant 591 | -10/Materials | Discovered new exit (range 8) 739 | -10/Materials | Entered Mines 894 | -10/Mines | Assembled infested the area 895 | -10/Mines | Learned 2 Materials zone layouts 947 | -10/Mines | Core integrity fell below 50% 961 | -10/Mines | Core integrity fell below 20% 962 | -10/Mines | Destroyed by as-89426 with Assembled Rifle Last Messages --------------- 00938_ D-53 Grenadier unfolds itself. 00944_ The unstable cave ceiling collapses. 00945_ as-60282 destroyed. 00946_ The unstable cave ceiling collapses. 00948_ as-25963 destroyed. 00953_ Dropped Lgt. Ion Engine. 00957_ as-10141 destroyed. 00958_ Lgt. Ion Engine destroyed. 00958_ as-35988 destroyed. 00958_ as-72036 destroyed. 00958_ Critical hit (Burn: +80). 00959_ Lgt. Assault Rifle destroyed. 00959_ Heat Sink destroyed. 00959_ as-14569 destroyed. 00960_ Lgt. Cannon destroyed. 00960_ Wheel destroyed. 00960_ as-61051 destroyed. 00960_ as-80295 destroyed. 00962_ Com. Wheel destroyed. 00962_ System corrupted by crushing effect (+5). Map ----- +----------------------------------------------------+ | #????????????????? | | ##????????????????? | | ####?????????????????? | | # ##????????????????????? | | ## #?????????????????????? | | ?# #?????????????????????? | | ?# #?????????????????????? | | ?# #?????????????????????? | | ## #?????????????????????? | | # #?????????????????????? | | ##?????????????????????? | | ##???????????####???????? | | ####???????????## ##??????? | | ##????????????### ##?????? | | #????????????## ##????? | | #???????????## ##???? | | #??????????## ##??? | | ##???????#### ##?? | | ######?### # d #?? | | %"## ### # d ##? | | " ## | | ## # | | ?### #? | | #???## #? | | ###### # #?????## % #? | | ##????## #??????# @ #? | | ##??????### #??????## a a #? | | #?????????# ##???????##